fUSD/lending_fUSD_20260504
["ID","MTS","AMOUNT","RATE_DAILY","PERIOD"]
[421535975,1777832126000,-250.0,0.00033952,2]
[421535972,1777832126000,-202.893004,0.00033596,21]
[421535974,1777832126000,-250.0,0.00033952,2]
[421535976,1777832126000,-250.0,0.00033952,2]
[421535979,1777832126000,-250.0,0.00033952,2]
[421535980,1777832126000,-392.0,0.00033952,2]
[421535978,1777832126000,-250.0,0.00033952,2]
[421535981,1777832126000,-250.0,0.00033957,7]
[421535982,1777832126000,-250.0,0.00033957,7]
[421535983,1777832126000,-3682.25436098,0.00034114,2]
[421535984,1777832126000,-244.2,0.00034182,7]
[421535959,1777832126000,-1664.0,0.00033287,2]
[421535973,1777832126000,-250.0,0.00033952,2]
[421535957,1777832126000,-627.508388,0.00033257,7]
[421535930,1777832126000,-151.0,0.000332,7]
[421535955,1777832126000,-627.508388,0.00033257,7]
[421535986,1777832126000,-72720.54091221,0.00034222,7]
[421535932,1777832126000,-250.0,0.000332,7]
[421535931,1777832126000,-151.0,0.000332,7]
[421535934,1777832126000,-334.363504,0.000332,7]
[421535933,1777832126000,-174.837326,0.000332,7]
[421535941,1777832126000,-251.576851,0.000332,7]
[421535935,1777832126000,-174.837326,0.000332,7]
[421535936,1777832126000,-334.363504,0.000332,7]
[421535944,1777832126000,-151.0,0.000332,7]
[421535937,1777832126000,-174.837326,0.000332,7]
[421535938,1777832126000,-334.363504,0.000332,7]
[421535943,1777832126000,-151.0,0.000332,7]
[421535958,1777832126000,-2039.321,0.00033287,2]
[421535942,1777832126000,-151.0,0.000332,7]
[421535939,1777832126000,-334.363504,0.000332,7]
[421535945,1777832126000,-151.0,0.000332,7]
[421535946,1777832126000,-151.0,0.000332,7]
[421535947,1777832126000,-161.999999,0.00033214,30]
[421535949,1777832126000,-1351.0,0.00033257,2]
[421535948,1777832126000,-623.0,0.00033257,2]
[421535950,1777832126000,-1049.0,0.00033257,2]
[421535953,1777832126000,-1221.0,0.00033257,2]
[421535956,1777832126000,-627.508388,0.00033257,7]
[421535951,1777832126000,-3534.0,0.00033257,2]
[421535952,1777832126000,-1267.0,0.00033257,2]
[421535954,1777832126000,-627.508388,0.00033257,7]
[421535940,1777832126000,-174.837326,0.000332,7]
[421535989,1777832126000,-152.025206,0.00034222,7]
[421536034,1777832126000,-611.104685,0.00035616,7]
[421535990,1777832126000,-151.0,0.00034222,7]
[421536027,1777832126000,-150.0,0.00035418,10]
[421536020,1777832126000,-150.0,0.00035418,10]
[421536021,1777832126000,-150.0,0.00035418,10]
[421536018,1777832126000,-268.55149293,0.00035147,2]
[421536023,1777832126000,-150.0,0.00035418,10]
[421536022,1777832126000,-267.17986594,0.00035418,10]
[421536024,1777832126000,-171.76789105,0.00035418,10]
[421536026,1777832126000,-150.0,0.00035418,10]
[421536025,1777832126000,-150.0,0.00035418,10]
[421536029,1777832126000,-150.0,0.00035418,10]
[421536031,1777832126000,-381.0,0.00035558,2]
[421536030,1777832126000,-150.78420294,0.00035418,10]
[421536032,1777832126000,-611.104685,0.00035616,7]
[421536038,1777832126000,-611.104685,0.00035616,7]
[421536035,1777832126000,-611.104685,0.00035616,7]
[421536037,1777832126000,-611.104685,0.00035616,7]
[421536033,1777832126000,-611.104685,0.00035616,7]
[421536036,1777832126000,-611.104685,0.00035616,7]
[421536039,1777832126000,-611.104685,0.00035616,7]
[421536040,1777832126000,-611.104685,0.00035616,7]
[421536042,1777832126000,-611.104685,0.00035616,7]
[421536043,1777832126000,-611.104685,0.00035616,7]
[421536041,1777832126000,-611.104685,0.00035616,7]
[421536044,1777832126000,-150.0,0.00035722,2]
[421535985,1777832126000,-34755.60742443,0.00034222,7]
[421536019,1777832126000,-150.0,0.00035418,10]
[421536016,1777832126000,-195.0,0.00035095,2]
[421536028,1777832126000,-150.0,0.00035418,10]
[421536015,1777832126000,-200.0,0.00035095,2]
[421536017,1777832126000,-2000.0,0.000351,7]
[421535991,1777832126000,-151.0,0.00034222,7]
[421535988,1777832126000,-151.0,0.00034222,7]
[421535992,1777832126000,-151.0,0.00034222,7]
[421535993,1777832126000,-222.770781,0.00034222,7]
[421535995,1777832126000,-12095.96564589,0.00034332,2]
[421535994,1777832126000,-151.0,0.00034222,7]
[421535997,1777832126000,-4379.884,0.00034712,39]
[421535996,1777832126000,-257.51663565,0.00034696,2]
[421535999,1777832126000,-5181.39,0.00035,14]
[421535998,1777832126000,-182.13758434,0.00035,20]
[421536001,1777832126000,-200.0,0.0003508,2]
[421536003,1777832126000,-200.0,0.0003508,2]
[421535987,1777832126000,-151.0,0.00034222,7]
[421536004,1777832126000,-200.0,0.0003508,2]
[421536000,1777832126000,-186.0,0.00035,30]
[421536013,1777832126000,-200.0,0.00035095,2]
[421536012,1777832126000,-200.0,0.00035095,2]
[421536011,1777832126000,-200.0,0.00035095,2]
[421536008,1777832126000,-206.0,0.0003508,2]
[421536007,1777832126000,-200.0,0.0003508,2]
[421536014,1777832126000,-200.0,0.00035095,2]
[421536010,1777832126000,-200.0,0.00035095,2]
[421536006,1777832126000,-200.0,0.0003508,2]
[421536005,1777832126000,-200.0,0.0003508,2]
[421536002,1777832126000,-200.0,0.0003508,2]
[421536009,1777832126000,-200.0,0.00035095,2]
[421536086,1777832127000,-174.837326,0.00036627,7]
[421536084,1777832127000,-381.0,0.00036497,2]
[421536082,1777832127000,-151.0,0.00036495,7]
[421536075,1777832127000,-381.0,0.00036488,2]
[421536079,1777832127000,-611.104685,0.00036495,7]
[421536083,1777832127000,-181.860933,0.00036495,7]
[421536080,1777832127000,-151.0,0.00036495,7]
[421536078,1777832127000,-611.104685,0.00036495,7]
[421536077,1777832127000,-611.104685,0.00036495,7]
[421536085,1777832127000,-381.0,0.00036623,2]
[421536081,1777832127000,-611.104685,0.00036495,7]
[421536087,1777832127000,-334.363504,0.00036627,7]
[421536095,1777832127000,-150.0,0.00036668,2]
[421536094,1777832127000,-12095.96564589,0.00036627,2]
[421536089,1777832127000,-334.363504,0.00036627,7]
[421536090,1777832127000,-334.363504,0.00036627,7]
[421536093,1777832127000,-174.837326,0.00036627,7]
[421536096,1777832127000,-150.0,0.00036668,2]
[421536092,1777832127000,-334.363504,0.00036627,7]
[421536091,1777832127000,-174.837326,0.00036627,7]
[421536097,1777832127000,-150.0,0.00036668,2]
[421536098,1777832127000,-150.0,0.00036668,2]
[421536100,1777832127000,-150.0,0.00036668,2]
[421536107,1777832127000,-793.16,0.000368,30]
[421536074,1777832127000,-151.0,0.000364,7]
[421536088,1777832127000,-174.837326,0.00036627,7]
[421536076,1777832127000,-381.0,0.00036495,2]
[421536045,1777832127000,-150.933,0.00035722,2]
[421536072,1777832127000,-5181.39,0.000364,14]
[421536046,1777832127000,-164.623,0.00035722,2]
[421536049,1777832127000,-255.569,0.00035722,2]
[421536047,1777832127000,-194.129,0.00035722,2]
[421536048,1777832127000,-284.164,0.00035722,2]
[421536050,1777832127000,-183.0,0.00035722,2]
[421536051,1777832127000,-242.588,0.00035722,2]
[421536057,1777832127000,-9150.0,0.00036,30]
[421536059,1777832127000,-381.0,0.00036096,2]
[421536053,1777832127000,-1589.4,0.000358,30]
[421536052,1777832127000,-300.0,0.00035799,10]
[421536060,1777832127000,-381.0,0.00036127,2]
[421536056,1777832127000,-381.0,0.00035879,2]
[421536073,1777832127000,-151.0,0.000364,7]
[421536054,1777832127000,-55985.85,0.000358,7]
[421536058,1777832127000,-381.0,0.00036018,2]
[421536061,1777832127000,-150.0,0.00036132,30]
[421536062,1777832127000,-785.06,0.00036132,30]
[421536064,1777832127000,-623.0,0.00036257,2]
[421536063,1777832127000,-244.2,0.00036153,30]
[421536065,1777832127000,-1351.0,0.00036257,2]
[421536068,1777832127000,-1221.0,0.00036257,2]
[421536066,1777832127000,-1049.0,0.00036257,2]
[421536070,1777832127000,-416.0,0.00036287,2]
[421536067,1777832127000,-3534.0,0.00036257,2]
[421536069,1777832127000,-381.0,0.00036269,2]
[421536071,1777832127000,-3682.25436098,0.00036375,2]
[421536055,1777832127000,-381.0,0.00035878,2]
[421536099,1777832127000,-150.0,0.00036668,2]
[421536101,1777832127000,-150.0,0.00036668,2]
[421536102,1777832127000,-150.0,0.00036668,2]
[421536134,1777832127000,-151.0,0.00037583,7]
[421536138,1777832127000,-759.519619,0.00037583,7]
[421536137,1777832127000,-759.519619,0.00037583,7]
[421536136,1777832127000,-759.519619,0.00037583,7]
[421536140,1777832127000,-291.495724,0.00037583,7]
[421536141,1777832127000,-58533.4754404,0.00037583,2]
[421536139,1777832127000,-151.0,0.00037583,7]
[421536143,1777832127000,-9824.1645802,0.00037583,2]
[421536144,1777832127000,-5181.39,0.000376,14]
[421536142,1777832127000,-1340.8836132,0.00037583,2]
[421536146,1777832127000,-150.0,0.00037725,2]
[421536145,1777832127000,-150.25259093,0.00037628,2]
[421536135,1777832127000,-759.519619,0.00037583,7]
[421536148,1777832127000,-150.0,0.00037725,2]
[421536147,1777832127000,-150.0,0.00037725,2]
[421536154,1777832127000,-381.0,0.00037794,2]
[421536153,1777832127000,-500.0,0.00037781,2]
[421536151,1777832127000,-150.0,0.00037725,2]
[421536155,1777832127000,-2000.0,0.0003781,94]
[421536149,1777832127000,-150.0,0.00037725,2]
[421536152,1777832127000,-278.0,0.00037725,2]
[421536156,1777832127000,-2000.0,0.0003781,94]
[421536158,1777832127000,-381.0,0.0003787,2]
[421536157,1777832127000,-381.0,0.00037837,2]
[421536103,1777832127000,-216.0,0.00036668,2]
[421536160,1777832127000,-55985.85,0.00038,7]
[421536150,1777832127000,-150.0,0.00037725,2]
[421536132,1777832127000,-627.508388,0.00037583,7]
[421536159,1777832127000,-381.0,0.0003799,2]
[421536129,1777832127000,-258.12568,0.00037583,7]
[421536133,1777832127000,-627.508388,0.00037583,7]
[421536105,1777832127000,-381.0,0.00036701,2]
[421536104,1777832127000,-500.0,0.00036701,7]
[421536108,1777832127000,-1412.541263,0.000368,7]
[421536109,1777832127000,-1412.541263,0.000368,7]
[421536111,1777832127000,-1412.541263,0.000368,7]
[421536110,1777832127000,-151.0,0.000368,7]
[421536117,1777832127000,-150.0,0.00036916,2]
[421536112,1777832127000,-1412.541263,0.000368,7]
[421536115,1777832127000,-381.0,0.00036889,2]
[421536113,1777832127000,-151.0,0.000368,7]
[421536116,1777832127000,-152.0,0.00036897,3]
[421536114,1777832127000,-151.0,0.000368,7]
[421536106,1777832127000,-381.0,0.0003677,2]
[421536119,1777832127000,-235.0,0.00036916,2]
[421536127,1777832127000,-381.0,0.00037498,2]
[421536131,1777832127000,-627.508388,0.00037583,7]
[421536130,1777832127000,-627.508388,0.00037583,7]
[421536118,1777832127000,-150.0,0.00036916,2]
[421536126,1777832127000,-260.0,0.00037291,2]
[421536128,1777832127000,-151.0,0.00037583,7]
[421536124,1777832127000,-150.0,0.00037291,2]
[421536122,1777832127000,-150.0,0.00037291,2]
[421536123,1777832127000,-150.0,0.00037291,2]
[421536120,1777832127000,-186.0,0.00037006,30]
[421536121,1777832127000,-381.0,0.00037021,2]
[421536125,1777832127000,-150.0,0.00037291,2]
[421536199,1777832128000,-151.0,0.00038213,7]
[421536196,1777832128000,-151.0,0.00038213,7]
[421536198,1777832128000,-151.0,0.00038213,7]
[421536197,1777832128000,-151.0,0.00038213,7]
[421536190,1777832128000,-331.42771838,0.00038194,120]
[421536194,1777832128000,-350.0,0.00038203,2]
[421536192,1777832128000,-250.0,0.00038202,7]
[421536193,1777832128000,-250.0,0.00038202,7]
[421536191,1777832128000,-151.0,0.00038194,7]
[421536195,1777832128000,-151.0,0.00038213,7]
[421536200,1777832128000,-295.998161,0.00038213,7]
[421536205,1777832128000,-151.0,0.00038213,7]
[421536203,1777832128000,-627.508388,0.00038213,7]
[421536202,1777832128000,-627.508388,0.00038213,7]
[421536207,1777832128000,-759.519619,0.00038213,7]
[421536204,1777832128000,-627.508396,0.00038213,7]
[421536206,1777832128000,-759.519619,0.00038213,7]
[421536209,1777832128000,-759.51962348,0.00038213,7]
[421536214,1777832128000,-1412.541263,0.00038213,7]
[421536208,1777832128000,-759.519619,0.00038213,7]
[421536210,1777832128000,-151.0,0.00038213,7]
[421536212,1777832128000,-1412.541263,0.00038213,7]
[421536188,1777832128000,-2000.0,0.00038187,99]
[421536201,1777832128000,-627.508388,0.00038213,7]
[421536189,1777832128000,-2000.0,0.00038187,99]
[421536176,1777832128000,-161.0,0.0003807,120]
[421536186,1777832128000,-2000.0,0.00038187,99]
[421536164,1777832128000,-151.0,0.00038,7]
[421536162,1777832128000,-190.258876,0.00038,7]
[421536166,1777832128000,-151.0,0.00038,7]
[421536163,1777832128000,-151.0,0.00038,7]
[421536165,1777832128000,-151.0,0.00038,7]
[421536161,1777832128000,-151.0,0.00038,7]
[421536167,1777832128000,-220.72382008,0.00038,7]
[421536169,1777832128000,-2056.8044,0.00038019,2]
[421536172,1777832128000,-333.39,0.00038034,30]
[421536168,1777832128000,-2085.2204,0.00038019,2]
[421536170,1777832128000,-2035.4191,0.00038019,2]
[421536184,1777832128000,-500.0,0.00038184,7]
[421536177,1777832128000,-161.0,0.0003807,120]
[421536175,1777832128000,-350.0,0.00038055,2]
[421536171,1777832128000,-381.0,0.00038021,2]
[421536174,1777832128000,-150.0,0.00038052,30]
[421536178,1777832128000,-244.2,0.00038125,30]
[421536180,1777832128000,-381.0,0.00038169,2]
[421536182,1777832128000,-632.95,0.00038184,7]
[421536183,1777832128000,-632.95,0.00038184,7]
[421536179,1777832128000,-381.0,0.00038125,2]
[421536181,1777832128000,-151.0,0.00038182,14]
[421536187,1777832128000,-2000.0,0.00038187,99]
[421536185,1777832128000,-243.88768635,0.00038186,120]
[421536173,1777832128000,-1555.01,0.00038034,30]
[421536211,1777832128000,-1412.541263,0.00038213,7]
[421536221,1777832128000,-334.363504,0.00038213,7]
[421536219,1777832128000,-334.363504,0.00038213,7]
[421536252,1777832128000,-1144.24336667,0.00038213,2]
[421536253,1777832128000,-308.80035792,0.00038213,2]
[421536245,1777832128000,-852.02203048,0.00038213,2]
[421536246,1777832128000,-1791.83489269,0.00038213,2]
[421536251,1777832128000,-300.0,0.00038213,2]
[421536250,1777832128000,-343.10293342,0.00038213,2]
[421536248,1777832128000,-300.0,0.00038213,2]
[421536247,1777832128000,-300.0,0.00038213,2]
[421536249,1777832128000,-300.0,0.00038213,2]
[421536254,1777832128000,-300.0,0.00038213,2]
[421536256,1777832128000,-300.0,0.00038213,2]
[421536257,1777832128000,-1803.59070546,0.00038213,2]
[421536264,1777832128000,-462.67536322,0.00038213,2]
[421536258,1777832128000,-300.0,0.00038213,2]
[421536261,1777832128000,-310.10110385,0.00038213,2]
[421536259,1777832128000,-300.0,0.00038213,2]
[421536260,1777832128000,-300.0,0.00038213,2]
[421536263,1777832128000,-300.0,0.00038213,2]
[421536262,1777832128000,-300.0,0.00038213,2]
[421536266,1777832128000,-433.53989763,0.00038213,2]
[421536265,1777832128000,-300.0,0.00038213,2]
[421536267,1777832128000,-300.0,0.00038213,2]
[421536213,1777832128000,-151.0,0.00038213,7]
[421536243,1777832128000,-426.566207,0.00038213,2]
[421536244,1777832128000,-300.0,0.00038213,2]
[421536255,1777832128000,-862.2151725,0.00038213,2]
[421536239,1777832128000,-302.99203414,0.00038213,2]
[421536242,1777832128000,-300.0,0.00038213,2]
[421536215,1777832128000,-1412.541257,0.00038213,7]
[421536217,1777832128000,-151.0,0.00038213,7]
[421536216,1777832128000,-151.0,0.00038213,7]
[421536220,1777832128000,-174.837326,0.00038213,7]
[421536218,1777832128000,-174.837326,0.00038213,7]
[421536222,1777832128000,-334.363504,0.00038213,7]
[421536224,1777832128000,-334.363512,0.00038213,7]
[421536228,1777832128000,-611.104685,0.00038213,7]
[421536226,1777832128000,-151.0,0.00038213,7]
[421536223,1777832128000,-174.837326,0.00038213,7]
[421536225,1777832128000,-174.837332,0.00038213,7]
[421536229,1777832128000,-611.104685,0.00038213,7]
[421536227,1777832128000,-151.0,0.00038213,7]
[421536237,1777832128000,-300.0,0.00038213,2]
[421536233,1777832128000,-151.0,0.00038213,7]
[421536238,1777832128000,-300.0,0.00038213,2]
[421536235,1777832128000,-300.0,0.00038213,2]
[421536236,1777832128000,-301.02040482,0.00038213,2]
[421536241,1777832128000,-300.0,0.00038213,2]
[421536234,1777832128000,-249.87680762,0.00038213,2]
[421536232,1777832128000,-611.104682,0.00038213,7]
[421536231,1777832128000,-151.0,0.00038213,7]
[421536230,1777832128000,-611.104685,0.00038213,7]
[421536240,1777832128000,-300.0,0.00038213,2]
[421536311,1777832129000,-300.0,0.00038213,2]
[421536308,1777832129000,-300.0,0.00038213,2]
[421536309,1777832129000,-1064.20055128,0.00038213,2]
[421536307,1777832129000,-526.39557632,0.00038213,2]
[421536305,1777832129000,-300.0,0.00038213,2]
[421536306,1777832129000,-300.0,0.00038213,2]
[421536304,1777832129000,-300.0,0.00038213,2]
[421536303,1777832129000,-602.92697109,0.00038213,2]
[421536302,1777832129000,-300.0,0.00038213,2]
[421536300,1777832129000,-300.0,0.00038213,2]
[421536297,1777832129000,-300.0,0.00038213,2]
[421536301,1777832129000,-300.0,0.00038213,2]
[421536310,1777832129000,-891.13316488,0.00038213,2]
[421536324,1777832129000,-300.0,0.00038213,2]
[421536313,1777832129000,-724.19402235,0.00038213,2]
[421536314,1777832129000,-300.0,0.00038213,2]
[421536315,1777832129000,-301.02040482,0.00038213,2]
[421536312,1777832129000,-308.86043429,0.00038213,2]
[421536317,1777832129000,-300.0,0.00038213,2]
[421536319,1777832129000,-300.0,0.00038213,2]
[421536321,1777832129000,-426.566207,0.00038213,2]
[421536318,1777832129000,-300.0,0.00038213,2]
[421536320,1777832129000,-300.0,0.00038213,2]
[421536322,1777832129000,-852.02203048,0.00038213,2]
[421536326,1777832129000,-300.0,0.00038213,2]
[421536296,1777832129000,-300.0,0.00038213,2]
[421536316,1777832129000,-300.0,0.00038213,2]
[421536298,1777832129000,-491.42621558,0.00038213,2]
[421536272,1777832129000,-300.0,0.00038213,2]
[421536294,1777832129000,-300.0,0.00038213,2]
[421536268,1777832129000,-450.74402986,0.00038213,2]
[421536271,1777832129000,-300.0,0.00038213,2]
[421536323,1777832129000,-300.0,0.00038213,2]
[421536270,1777832129000,-300.0,0.00038213,2]
[421536269,1777832129000,-300.0,0.00038213,2]
[421536274,1777832129000,-300.0,0.00038213,2]
[421536273,1777832129000,-300.0,0.00038213,2]
[421536275,1777832129000,-482.8546576,0.00038213,2]
[421536277,1777832129000,-300.0,0.00038213,2]
[421536279,1777832129000,-300.0,0.00038213,2]
[421536278,1777832129000,-300.0,0.00038213,2]
[421536287,1777832129000,-300.0,0.00038213,2]
[421536280,1777832129000,-300.0,0.00038213,2]
[421536276,1777832129000,-309.0528839,0.00038213,2]
[421536281,1777832129000,-300.0,0.00038213,2]
[421536283,1777832129000,-1091.89164942,0.00038213,2]
[421536286,1777832129000,-300.0,0.00038213,2]
[421536285,1777832129000,-300.0,0.00038213,2]
[421536282,1777832129000,-300.0,0.00038213,2]
[421536284,1777832129000,-300.0,0.00038213,2]
[421536289,1777832129000,-300.0,0.00038213,2]
[421536290,1777832129000,-300.0,0.00038213,2]
[421536288,1777832129000,-300.0,0.00038213,2]
[421536292,1777832129000,-300.0,0.00038213,2]
[421536299,1777832129000,-300.0,0.00038213,2]
[421536291,1777832129000,-300.0,0.00038213,2]
[421536293,1777832129000,-300.0,0.00038213,2]
[421536295,1777832129000,-300.0,0.00038213,2]
[421536327,1777832129000,-343.10293342,0.00038213,2]
[421536325,1777832129000,-1791.83489269,0.00038213,2]
[421536329,1777832129000,-300.0,0.00038213,2]
[421536365,1777832129000,-300.0,0.00038213,2]
[421536362,1777832129000,-300.0,0.00038213,2]
[421536364,1777832129000,-300.0,0.00038213,2]
[421536372,1777832129000,-300.0,0.00038213,2]
[421536367,1777832129000,-300.0,0.00038213,2]
[421536371,1777832129000,-300.0,0.00038213,2]
[421536360,1777832129000,-300.0,0.00038213,2]
[421536366,1777832129000,-300.0,0.00038213,2]
[421536368,1777832129000,-300.0,0.00038213,2]
[421536369,1777832129000,-300.0,0.00038213,2]
[421536363,1777832129000,-300.0,0.00038213,2]
[421536370,1777832129000,-300.0,0.00038213,2]
[421536374,1777832129000,-300.0,0.00038213,2]
[421536379,1777832129000,-300.0,0.00038213,2]
[421536373,1777832129000,-300.0,0.00038213,2]
[421536384,1777832129000,-300.0,0.00038213,2]
[421536375,1777832129000,-300.0,0.00038213,2]
[421536377,1777832129000,-300.0,0.00038213,2]
[421536376,1777832129000,-491.42621558,0.00038213,2]
[421536378,1777832129000,-300.0,0.00038213,2]
[421536382,1777832129000,-300.0,0.00038213,2]
[421536383,1777832129000,-300.0,0.00038213,2]
[421536381,1777832129000,-602.92697109,0.00038213,2]
[421536380,1777832129000,-300.0,0.00038213,2]
[421536386,1777832129000,-526.39557632,0.00038213,2]
[421536328,1777832129000,-300.0,0.00038213,2]
[421536387,1777832129000,-1064.20055128,0.00038213,2]
[421536361,1777832129000,-1091.89164942,0.00038213,2]
[421536359,1777832129000,-300.0,0.00038213,2]
[421536385,1777832129000,-300.0,0.00038213,2]
[421536348,1777832129000,-300.0,0.00038213,2]
[421536349,1777832129000,-300.0,0.00038213,2]
[421536332,1777832129000,-300.0,0.00038213,2]
[421536330,1777832129000,-1144.24336667,0.00038213,2]
[421536333,1777832129000,-862.2151725,0.00038213,2]
[421536334,1777832129000,-300.0,0.00038213,2]
[421536335,1777832129000,-1803.59070546,0.00038213,2]
[421536346,1777832129000,-450.74402986,0.00038213,2]
[421536345,1777832129000,-300.0,0.00038213,2]
[421536337,1777832129000,-300.0,0.00038213,2]
[421536338,1777832129000,-300.0,0.00038213,2]
[421536343,1777832129000,-300.0,0.00038213,2]
[421536339,1777832129000,-310.10110385,0.00038213,2]
[421536336,1777832129000,-300.0,0.00038213,2]
[421536331,1777832129000,-308.80035792,0.00038213,2]
[421536341,1777832129000,-300.0,0.00038213,2]
[421536353,1777832129000,-482.8546576,0.00038213,2]
[421536355,1777832129000,-300.0,0.00038213,2]
[421536352,1777832129000,-300.0,0.00038213,2]
[421536356,1777832129000,-300.0,0.00038213,2]
[421536342,1777832129000,-462.67536322,0.00038213,2]
[421536354,1777832129000,-309.0528839,0.00038213,2]
[421536347,1777832129000,-300.0,0.00038213,2]
[421536357,1777832129000,-300.0,0.00038213,2]
[421536351,1777832129000,-300.0,0.00038213,2]
[421536350,1777832129000,-300.0,0.00038213,2]
[421536340,1777832129000,-300.0,0.00038213,2]
[421536344,1777832129000,-433.53989763,0.00038213,2]
[421536358,1777832129000,-300.0,0.00038213,2]
[421536429,1777832130000,-300.0,0.00038213,2]
[421536426,1777832130000,-300.0,0.00038213,2]
[421536427,1777832130000,-300.0,0.00038213,2]
[421536432,1777832130000,-482.8546576,0.00038213,2]
[421536419,1777832130000,-300.0,0.00038213,2]
[421536433,1777832130000,-309.0528839,0.00038213,2]
[421536424,1777832130000,-300.0,0.00038213,2]
[421536422,1777832130000,-300.0,0.00038213,2]
[421536421,1777832130000,-462.67536322,0.00038213,2]
[421536420,1777832130000,-300.0,0.00038213,2]
[421536423,1777832130000,-433.53989763,0.00038213,2]
[421536431,1777832130000,-300.0,0.00038213,2]
[421536435,1777832130000,-300.0,0.00038213,2]
[421536428,1777832130000,-300.0,0.00038213,2]
[421536425,1777832130000,-450.74402986,0.00038213,2]
[421536434,1777832130000,-300.0,0.00038213,2]
[421536436,1777832130000,-300.0,0.00038213,2]
[421536438,1777832130000,-300.0,0.00038213,2]
[421536437,1777832130000,-300.0,0.00038213,2]
[421536440,1777832130000,-1091.89164942,0.00038213,2]
[421536439,1777832130000,-300.0,0.00038213,2]
[421536445,1777832130000,-300.0,0.00038213,2]
[421536443,1777832130000,-300.0,0.00038213,2]
[421536441,1777832130000,-300.0,0.00038213,2]
[421536418,1777832130000,-310.10110385,0.00038213,2]
[421536444,1777832130000,-300.0,0.00038213,2]
[421536430,1777832130000,-300.0,0.00038213,2]
[421536415,1777832130000,-300.0,0.00038213,2]
[421536406,1777832130000,-343.10293342,0.00038213,2]
[421536416,1777832130000,-300.0,0.00038213,2]
[421536442,1777832130000,-300.0,0.00038213,2]
[421536396,1777832130000,-300.0,0.00038213,2]
[421536388,1777832130000,-891.13316488,0.00038213,2]
[421536395,1777832130000,-300.0,0.00038213,2]
[421536389,1777832130000,-587.03297745,0.00038213,2]
[421536392,1777832130000,-300.0,0.00038213,2]
[421536390,1777832130000,-308.86043429,0.00038213,2]
[421536394,1777832130000,-300.0,0.00038213,2]
[421536393,1777832130000,-301.02040482,0.00038213,2]
[421536391,1777832130000,-724.19402235,0.00038213,2]
[421536408,1777832130000,-300.0,0.00038213,2]
[421536397,1777832130000,-300.0,0.00038213,2]
[421536417,1777832130000,-300.0,0.00038213,2]
[421536403,1777832130000,-300.0,0.00038213,2]
[421536404,1777832130000,-1791.83489269,0.00038213,2]
[421536398,1777832130000,-300.0,0.00038213,2]
[421536405,1777832130000,-300.0,0.00038213,2]
[421536409,1777832130000,-1144.24336667,0.00038213,2]
[421536401,1777832130000,-300.0,0.00038213,2]
[421536402,1777832130000,-852.02203048,0.00038213,2]
[421536407,1777832130000,-300.0,0.00038213,2]
[421536411,1777832130000,-300.0,0.00038213,2]
[421536414,1777832130000,-1803.59070546,0.00038213,2]
[421536412,1777832130000,-862.2151725,0.00038213,2]
[421536413,1777832130000,-300.0,0.00038213,2]